Cogmind - Beta 14 @@@ ROGUE MODE // 2024.08.09 @ 17:25:48 Player: Vivisector9999 Result: Destroyed by P-60 Hacker with Shock Rifle Performance ------------- Evolutions (4) 2000 Regions Visited (9) 1800 Robots Destroyed (51) 255 Value Destroyed (1631) 1631 Prototype IDs (6) 120 Alien Tech Used (0) 0 Bonus (284) 284 TOTAL SCORE: 6090 Bonus ------- Aligned with FarCom 300 Friendly Fire -16 Cogmind --------- Core Integrity 0/850 Matter 207/300 Energy 39/100 System Corruption 10% Temperature Cool (0) Movement Core (750) Ox14 Location -6/Factory Parts ------- > --- POWER (3) -------- (None) > --- PROPULSION (4) --- (None) > --- UTILITY (5) ------ High-capacity Storage Unit Targeting Computer > --- WEAPON (3) ------- Heavy Machine Gun > --- INVENTORY (20) --- Medium Treads Improved Titanium Leg Nuclear Pulse Thruster Nuclear Pulse Thruster Nuclear Pulse Thruster Nuclear Pulse Thruster Medium Storage Unit Hardlight Generator Component Analysis Suite PSU Rigger Proton Cannon Plasma Cannon Plasma Cannon Gauss Rifle Gauss Rifle Flak Gun Improved Grenade Launcher Peak State ------------ > --- POWER ------------ Light Nuclear Core Improved Deuterium Engine Improved Deuterium Engine > --- PROPULSION ------- Improved Medium Treads Improved Medium Treads Improved Medium Treads Improved Medium Treads > --- UTILITY ---------- High-capacity Storage Unit Improved Sensor Array Targeting Computer Energy Filter Improved Light Armor Plating > --- WEAPON ----------- Plasma Cannon Gauss Rifle Heavy Machine Gun > --- INVENTORY -------- Medium Treads Improved Medium Treads Improved Titanium Leg Medium Storage Unit Hardlight Generator Component Analysis Suite Drone Bay PSU Rigger Proton Cannon Plasma Cannon Plasma Cannon Plasma Cannon Gauss Rifle Flak Gun Heavy Flak Cannon [Rating: 62] Favorites ----------- Power Improved Deuterium Engine Engine Improved Deuterium Engine Power Core Light Nuclear Core Propulsion Aluminum Leg Treads Improved Medium Treads Leg Aluminum Leg Utility Small Storage Unit Device Energy Filter Storage Small Storage Unit Processor Targeting Computer Protection Light Armor Plating Weapon Gauss Rifle Energy Gun Small Laser Energy Cannon Cooled Particle Cannon Ballistic Gun Gauss Rifle Ballistic Cannon Advanced Assault Cannon Launcher Grenade Launcher Special Weapon Mining Laser Impact Weapon Heavy Flail Build | -11 -10 -10 -10 -9 -8 -7 -7 -7 -6 ------- Run | Yrd Mat Min Exi Min Mat Fac Low Low Fac Slots Evolved 8 | . . . . . 4 2 . . 2 Power 2 | . . . . . 1 . . . 1 Propulsion 2 | . . . . . 2 . . . . Utility 3 | . . . . . 1 1 . . 1 Weapon 1 | . . . . . . 1 . . . Parts Attached 82 | 6 4 3 5 . 23 15 6 . 20 Power 10 | 1 . . 1 . 4 3 . . 1 Engine 9 | 1 . . 1 . 4 3 . . . Core 1 | . . . . . . . . . 1 Reactor . | . . . . . . . . . . Propulsion 17 | 2 1 . . . 3 2 2 . 7 Treads 7 | . . . . . . . . . 7 Leg 10 | 2 1 . . . 3 2 2 . . Wheel . | . . . . . . . . . . Hover . | . . . . . . . . . . Flight . | . . . . . . . . . . Utility 30 | 1 1 1 4 . 8 6 2 . 7 Device 8 | . . . . . 2 2 . . 4 Storage 13 | 1 . . 4 . 2 2 1 . 3 Processor 2 | . . . . . 1 1 . . . Hackware . | . . . . . . . . . . Protection 7 | . 1 1 . . 3 1 1 . . Artifact . | . . . . . . . . . . Weapon 25 | 2 2 2 . . 8 4 2 . 5 Energy Gun 1 | . . 1 . . . . . . . Energy Cannon 4 | . . . . . 1 1 . . 2 Ballistic Gun 7 | 2 . . . . 1 . 2 . 2 Ballistic Cannon 4 | . 1 . . . 1 1 . . 1 Launcher 4 | . . 1 . . 3 . . . . Special Weapon 1 | . 1 . . . . . . . . Impact Weapon 4 | . . . . . 2 2 . . . Slashing Weapon . | . . . . . . . . . . Piercing Weapon . | . . . . . . . . . . Special Melee Weapon . | . . . . . . . . . . Unidentified Prototypes 2 | . . . . . 2 . . . . Parts Lost 21 | . . 1 . . 2 2 2 . 14 Power 3 | . . . . . . 1 . . 2 Propulsion 6 | . . . . . . . 2 . 4 Utility 7 | . . . . . 2 1 . . 4 Weapon 5 | . . 1 . . . . . . 4 Highest Loss Streak 12 | . . 1 . . 2 1 2 . 12 To Critical Strikes . | . . . . . . . . . . Average Slot Usage (%) 95 | . 97 99 100 100 94 95 92 92 88 Engine 14 | . 14 14 14 14 18 15 15 15 9 Treads 3 | . . . . . . . . . 21 Leg 24 | . 28 28 28 28 31 29 23 23 2 Device 2 | . . . . . . 5 . . 7 Storage 9 | . 14 14 14 14 9 7 7 7 6 Processor 5 | . . . . . . 9 15 15 6 Protection 9 | . 11 14 14 14 16 2 7 7 5 Energy Gun 3 | . . 7 14 14 2 . . . . Energy Cannon 4 | . . . . . 3 12 3 . 8 Ballistic Gun 4 | . 15 1 . . 2 . 11 15 10 Ballistic Cannon 2 | . 11 . . . 3 1 7 7 . Launcher 5 | . . 12 14 14 7 1 . . . Peak Build Rating 62 | 6 8 8 8 8 27 47 47 42 62 Average Rating 27 | 4 6 7 7 8 17 41 42 42 53 On Entrance 19 | . 6 8 8 8 8 26 47 42 42 Naked Turns . | . . . . . . . . . . Heaviest Build 88 | 13 18 17 22 17 44 49 50 47 88 Greatest Support 120 | 20 20 20 20 20 52 67 72 50 120 Greatest Overweight (x) 16 | . . . 1 . . . 1 . 16 Average Overweight (x) . | . . . . . . . . . . Largest Inventory Capacity 20 | 8 8 8 15 8 10 10 10 10 20 Average Capacity 9 | 7 8 8 8 8 8 8 9 10 16 Most Carried 20 | 5 8 8 8 8 8 8 10 10 20 Average Carried 8 | 2 7 7 7 8 7 7 9 10 13 Final Capacity 20 | 8 8 8 8 8 8 8 10 10 20 Final Carried 17 | 4 8 8 8 8 7 8 10 10 17 Class Distribution -------------------- 61% | Mutant 18% | Gunner 17% | Skirmisher Dominant Class ---------------- Mutant | -10/Materials Mutant | -10/Mines Mutant | -10/Exiles Mutant | -9/Mines Mutant | -8/Materials Mutant | -7/Factory Gunner | -7/Lower Caves Gunner | -7/Lower Caves Skirmisher | -6/Factory Resources | -11 -10 -10 -10 -9 -8 -7 -7 -7 -6 ----------- Run | Yrd Mat Min Exi Min Mat Fac Low Low Fac Matter Collected 1458 | 201 115 138 . 80 273 259 176 . 216 Remotely . | . . . . . . . . . . Salvage Created 1516 | . 86 86 . . 372 361 234 . 377 Parts 86 | . 7 9 . . 32 14 7 . 17 Haulers Intercepted . | . . . . . . . . . . Recyclers Shooed . | . . . . . . . . . . Parts Field Recycled . | . . . . . . . . . . Retrieved Matter . | . . . . . . . . . . Parts Self-Destructed 5 | . . . . . . . 5 . . Prevented . | . . . . . . . . . . Kills | -11 -10 -10 -10 -9 -8 -7 -7 -7 -6 ------- Run | Yrd Mat Min Exi Min Mat Fac Low Low Fac Combat Hostiles Destroyed 41 | . 5 5 . 1 11 9 5 . 5 Guns 10 | . 4 2 . . 3 . . . 1 Cannons 22 | . 1 1 . . 4 8 4 . 4 AOE 7 | . . 2 . 1 4 . . . . Classes Destroyed 12 | . 2 . . 1 6 1 . . 2 Worker 1 | . . . . . 1 . . . . Builder 4 | . . . . . 4 . . . . Recycler 1 | . . . . . 1 . . . . Operator 1 | . . . . . . . . . 1 Watcher 4 | . . . . . 2 . . . 2 Swarmer 16 | . 3 3 . . 6 4 . . . Grunt 13 | . 2 2 . . 2 1 4 . 2 Sentry 6 | . . . . . 2 3 . . 1 Specialist 1 | . . . . . . . . . 1 Hunter 2 | . . . . . 1 . 1 . . Programmer 2 | . . . . . . 1 . . 1 Assembled 1 | . . . . 1 . . . . . Best Kill Streak 11 | . 2 2 . 1 11 5 4 . 2 Combat Bots Only 6 | . 2 2 . 1 6 5 4 . 2 Max Kills in Single Turn 8 | . 1 1 . 1 8 1 1 . 1 Gunslinging . | . . . . . . . . . . Exploded 3 | . . 1 . 1 3 . . . . Melee . | . . . . . . . . . . Uniques/NPCs Destroyed . | . . . . . . . . . . Combat | -11 -10 -10 -10 -9 -8 -7 -7 -7 -6 -------- Run | Yrd Mat Min Exi Min Mat Fac Low Low Fac Hostile Shots Fired 470 | . 26 19 . 3 47 143 46 . 186 Missed 123 | . 4 5 . 1 13 53 11 . 36 Damage Taken 5213 | . 283 126 . 65 502 837 556 . 2844 Core 1084 | . 30 23 . 10 38 97 28 . 858 Absorbed by Shields 76 | . . . . . . 76 . . . Core Remaining (%) 87 | 100 . . . 74 93 . . 82 . Volleys Fired 127 | . 17 12 . 2 33 23 12 . 28 Largest 3 | . 2 2 . 2 2 3 3 . 3 Hottest 190 | . 55 120 . 70 69 108 108 . 190 Shots Fired 229 | . 26 15 . 4 46 55 32 . 51 Gun 50 | . 9 10 . 2 15 . 2 . 12 Cannon 166 | . 17 . . . 25 55 30 . 39 Launcher 10 | . . 2 . 2 6 . . . . Special 3 | . . 3 . . . . . . . Kinetic 93 | . 26 8 . . 12 12 14 . 21 Thermal 126 | . . 5 . 2 28 43 18 . 30 Explosive 10 | . . 2 . 2 6 . . . . Electromagnetic . | . . . . . . . . . . Robot Hit Streak 9 | . 9 1 . . 2 9 5 . 9 Robot Miss Streak 8 | . 1 3 . 2 4 8 4 . 3 Penetration Max . | . . . . . . . . . . Secondary Targets 1 | . . . . . 1 . . . . Max Gunslinging Chain 1 | . . . . . 1 . . . . Shots Hit Robots 122 | . 18 5 . . 18 33 16 . 32 Core Hits 79 | . 7 5 . 3 21 12 7 . 24 Critical Kills 3 | . . . . . . 1 1 . 1 Critical Parts Destroyed . | . . . . . . . . . . Critical Strikes 4 | . . . . . . 2 1 . 1 Meltdown 3 | . . . . . . 1 1 . 1 Blast 1 | . . . . . . 1 . . . Melee Attacks 7 | . . . . . 1 6 . . . Impact 7 | . . . . . 1 6 . . . Slashing . | . . . . . . . . . . Piercing . | . . . . . . . . . . Sneak Attacks . | . . . . . . . . . . Combat Hostiles . | . . . . . . . . . . Follow-up Attacks . | . . . . . . . . . . Damage Inflicted 4387 | . 289 235 . 37 1339 970 491 . 1026 Guns 428 | . 86 53 . . 78 . 12 . 199 Cannons 2658 | . 203 . . . 312 864 479 . 800 Explosions 1144 | . . 158 . 37 949 . . . . Melee 106 | . . . . . . 106 . . . Ramming 27 | . . . . . . . . . 27 Kinetic 1299 | . 289 53 . . 52 197 192 . 516 Thermal 2516 | . . 51 . . 1016 667 299 . 483 Explosive 439 | . . 131 . 37 271 . . . . Electromagnetic . | . . . . . . . . . . Impact 106 | . . . . . . 106 . . . Slashing . | . . . . . . . . . . Piercing . | . . . . . . . . . . Highest Corruption 10 | . . . . . . . . . 10 Average Corruption 1 | . . . . . . . . . 1 Corruption Purged . | . . . . . . . . . . Corruption Blocked . | . . . . . . . . . . Effects 6 | . . . . . . . . . 6 Message Errors 2 | . . . . . . . . . 2 Energy Discharges 3 | . . . . . . . . . 3 Data Loss (major) 1 | . . . . . . . . . 1 Overload Shots . | . . . . . . . . . . Overflow Damage 196 | . . 2 . . 114 41 21 . 18 Projectiles 88 | . . . . . 8 41 21 . 18 Explosions 108 | . . 2 . . 106 . . . . Melee . | . . . . . . . . . . Knockbacks 19 | . 5 . . . . 3 . . 11 Impact . | . . . . . . . . . . Kinetic 17 | . 5 . . . . 3 . . 9 Secondary 2 | . . . . . . . . . 2 Self-Inflicted Damage 170 | . . . . 19 151 . . . . Shots 4 | . . . . 1 3 . . . . Rammed 5 | . . . . . . . . . 5 Targets Rammed 5 | . . . . . . . . . 5 Kicked . | . . . . . . . . . . Crushed . | . . . . . . . . . . Highest Temperature 848 | . 99 99 . 36 95 394 480 . 848 Average Temperature 156 | . 45 38 . 19 29 136 248 . 303 Received Heat Transfer 945 | . 156 6 . . 81 174 279 . 249 Effects 44 | . . . . . . 3 7 . 34 Shutdowns 11 | . . . . . . 2 4 . 5 Energy Bleed 5 | . . . . . . . 1 . 4 Interference 11 | . . . . . . 1 . . 10 Matter Decay 5 | . . . . . . . 1 . 4 Short Circuit 2 | . . . . . . . 1 . 1 Damage (minor) 2 | . . . . . . . . . 2 Damage (major) 5 | . . . . . . . . . 5 Damage (core) 3 | . . . . . . . . . 3 Siege Activations . | . . . . . . . . . . Robots Corrupted . | . . . . . . . . . . Combat Hostiles . | . . . . . . . . . . Parts Fried . | . . . . . . . . . . Impact Corruptions . | . . . . . . . . . . Robots Melted 3 | . . . . . . 1 1 . 1 Combat Hostiles 2 | . . . . . . 1 1 . . Parts Melted 7 | . . . . . 2 3 . . 2 Heat Transferred 3327 | . . 100 . . 1107 888 407 . 825 Parts Sabotaged . | . . . . . . . . . . Parts Stolen . | . . . . . . . . . . Parts Stripped . | . . . . . . . . . . Power Chain Reactions . | . . . . . . . . . . Alert | -11 -10 -10 -10 -9 -8 -7 -7 -7 -6 ------- Run | Yrd Mat Min Exi Min Mat Fac Low Low Fac Peak Influence 369 | . 167 156 . 13 369 203 . . 126 Initial 167 | . . 64 . . 4 167 . . 6 Average 78 | . 77 111 . 10 99 115 . . 19 Maximum Alert Level 1 | . . . . . 1 1 . . . Low Security (%) 95 | 100 100 100 . 100 89 92 . . 100 Level 1 4 | . . . . . 10 7 . . . Level 2 . | . . . . . . . . . . Level 3 . | . . . . . . . . . . Level 4 . | . . . . . . . . . . Level 5 . | . . . . . . . . . . High Security . | . . . . . . . . . . Max Security . | . . . . . . . . . . Squads Dispatched 7 | . . . . . 1 2 . . 4 Investigation 1 | . . . . . . 1 . . . Extermination 3 | . . . . . . 1 . . 2 Reinforcement 2 | . . . . . 1 . . . 1 Assault . | . . . . . . . . . . Garrison 1 | . . . . . . . . . 1 Intercept . | . . . . . . . . . . Searches Triggered . | . . . . . . . . . . Construction Impeded 1 | . . . . . . . . . 1 Haulers Reinforced . | . . . . . . . . . . Active Scanning Responses . | . . . . . . . . . . Cargo Convoy Interrupts 1 | . . . . . . . . . 1 Stealth | -11 -10 -10 -10 -9 -8 -7 -7 -7 -6 --------- Run | Yrd Mat Min Exi Min Mat Fac Low Low Fac Distress Signals 3 | . . . . . 2 . . . 1 Communications Jammed . | . . . . . . . . . . Distress Signals . | . . . . . . . . . . Times Spotted 81 | . 7 5 . 6 22 14 6 . 21 Peak Tracking Total 12 | . 5 3 . 6 5 6 4 . 12 Tactical Retreats 8 | . 2 1 . . 2 2 1 . . Traps | -11 -10 -10 -10 -9 -8 -7 -7 -7 -6 ------- Run | Yrd Mat Min Exi Min Mat Fac Low Low Fac Traps Triggered 2 | . . . . . . . . . 2 Indirectly . | . . . . . . . . . . Trap Hack Attempts . | . . . . . . . . . . Triggered . | . . . . . . . . . . Disarmed . | . . . . . . . . . . Reprogrammed . | . . . . . . . . . . Reused . | . . . . . . . . . . Traps Extracted . | . . . . . . . . . . Installed . | . . . . . . . . . . Triggered . | . . . . . . . . . . Machines | -11 -10 -10 -10 -9 -8 -7 -7 -7 -6 ---------- Run | Yrd Mat Min Exi Min Mat Fac Low Low Fac Machines Disabled 6 | . . 1 . . 4 1 . . . Max in Single Turn 3 | . . 1 . . 3 1 . . . Machines Repaired . | . . . . . . . . . . Machines Dismantled . | . . . . . . . . . . Machines Sabotaged . | . . . . . . . . . . Overloaded Fab Kills . | . . . . . . . . . . Hacking | -11 -10 -10 -10 -9 -8 -7 -7 -7 -6 --------- Run | Yrd Mat Min Exi Min Mat Fac Low Low Fac Machines Accessed 23 | . 1 . 4 . 4 9 . . 5 Terminals 16 | . 1 . . . 4 8 . . 3 Fabricators . | . . . . . . . . . . Repair Stations 2 | . . . . . . 1 . . 1 Recycling Units . | . . . . . . . . . . Scanalyzers . | . . . . . . . . . . Garrison Access 1 | . . . . . . . . . 1 Total Hacks 103 | . 3 . 49 . 15 26 . . 10 Successful 82 | . 2 . 49 . 10 16 . . 5 Failed 21 | . 1 . . . 5 10 . . 5 Catastrophic 6 | . . . . . 2 2 . . 2 Database Lockouts . | . . . . . . . . . . Manual 10 | . 1 . 2 . 3 1 . . 3 Terminals 49 | . 3 . . . 15 24 . . 7 Fabricators . | . . . . . . . . . . Repair Stations 4 | . . . . . . 2 . . 2 Recycling Units . | . . . . . . . . . . Scanalyzers . | . . . . . . . . . . Garrison Access 1 | . . . . . . . . . 1 Terminal Hacks 79 | . 2 . 49 . 10 14 . . 4 Record 66 | . 2 . 49 . 6 7 . . 2 Prototype ID Bank 2 | . . . . . 1 1 . . . Alert Level 9 | . . . . . 3 4 . . 2 Unreport Threat 1 | . . . . . . 1 . . . Transport Status 1 | . . . . . . 1 . . . Fabricator Hacks . | . . . . . . . . . . Repair Station Hacks 3 | . . . . . . 2 . . 1 Scan Component 3 | . . . . . . 2 . . 1 Recycling Unit Hacks . | . . . . . . . . . . Scanalyzer . | . . . . . . . . . . Garrison Access Hacks . | . . . . . . . . . . Unauthorized Hacks . | . . . . . . . . . . Terminals . | . . . . . . . . . . Fabricators . | . . . . . . . . . . Repair Stations . | . . . . . . . . . . Recycling Units . | . . . . . . . . . . Scanalyzers . | . . . . . . . . . . Garrison Access . | . . . . . . . . . . Data Cores Recovered 1 | . . . . . . . . . 1 Used . | . . . . . . . . . . Hacking Detections 16 | . 1 . . . 3 8 . . 4 Full Trace Events 1 | . . . . . . 1 . . . Feedback Events . | . . . . . . . . . . Feedback Blocked . | . . . . . . . . . . Robot Schematics Acquired . | . . . . . . . . . . Robots Built . | . . . . . . . . . . Authchips . | . . . . . . . . . . Time . | . . . . . . . . . . Total Robot Build Rating . | . . . . . . . . . . Part Schematics Acquired . | . . . . . . . . . . Parts Built . | . . . . . . . . . . Authchips . | . . . . . . . . . . Time . | . . . . . . . . . . Total Part Build Rating . | . . . . . . . . . . Parts Repaired . | . . . . . . . . . . Time . | . . . . . . . . . . Parts Recycled . | . . . . . . . . . . Recycled Matter . | . . . . . . . . . . Retrieved Matter . | . . . . . . . . . . Retrieved Components . | . . . . . . . . . . Parts Scanalyzed . | . . . . . . . . . . Part Schematics Acquired . | . . . . . . . . . . Parts Damaged . | . . . . . . . . . . Bothacking | -11 -10 -10 -10 -9 -8 -7 -7 -7 -6 ------------ Run | Yrd Mat Min Exi Min Mat Fac Low Low Fac Used RIF Installer . | . . . . . . . . . . Robots Hacked . | . . . . . . . . . . Non-combat . | . . . . . . . . . . Combat . | . . . . . . . . . . Robot Hacks Applied . | . . . . . . . . . . Relay Couplers Released . | . . . . . . . . . . Fabnet Peak Effective % . | . . . . . . . . . . Robots Rewired . | . . . . . . . . . . Allies Hacked . | . . . . . . . . . . Hacks Repelled . | . . . . . . . . . . Allies | -11 -10 -10 -10 -9 -8 -7 -7 -7 -6 -------- Run | Yrd Mat Min Exi Min Mat Fac Low Low Fac Total Allies . | . . . . . . . . . . Largest Group . | . . . . . . . . . . Highest-Rated Group . | . . . . . . . . . . Highest-Rated Ally . | . . . . . . . . . . Total Orders . | . . . . . . . . . . Ally Attacks . | . . . . . . . . . . Total Damage . | . . . . . . . . . . Kills . | . . . . . . . . . . Allies Corrupted . | . . . . . . . . . . Allies Melted . | . . . . . . . . . . Intel | -11 -10 -10 -10 -9 -8 -7 -7 -7 -6 ------- Run | Yrd Mat Min Exi Min Mat Fac Low Low Fac Robot Analysis Total . | . . . . . . . . . . Derelict Logs Recovered 7 | . . 3 . 1 . . 3 . . Drone Launches 2 | . . . . . . . . . 2 Drone Recoveries . | . . . . . . . . . . Exploration | -11 -10 -10 -10 -9 -8 -7 -7 -7 -6 ------------- Run | Yrd Mat Min Exi Min Mat Fac Low Low Fac Turns Passed 6826 | 94 255 834 891 320 987 1144 1161 135 1005 Spaces Moved 4602 | 67 159 639 726 204 578 751 860 108 510 Core 4 | 3 . . . . . . . . 1 Treads 438 | . . . . . . . . . 438 Legs 4160 | 64 159 639 726 204 578 751 860 108 71 Wheels . | . . . . . . . . . . Hover . | . . . . . . . . . . Flight . | . . . . . . . . . . Fastest Speed 50 | 50 120 120 120 120 120 122 125 126 126 Average Speed 127 | 116 120 120 120 120 121 124 126 126 164 Slowest Speed 850 | 120 120 120 190 120 122 125 200 126 850 Overloaded Moves . | . . . . . . . . . . Propulsion Burnouts . | . . . . . . . . . . Robots Hopped . | . . . . . . . . . . Cave-ins Triggered . | . . . . . . . . . . Exploration Rate (%) 43 | 4 29 99 94 37 45 19 69 20 17 Regions Visited 9 Branch Regions 5 Pre-discovered Areas 4 | . . 3 1 . . . . . . Known Exits Taken 1 | . . . . . 1 . . . . Unknown Exits Taken 8 | 1 1 1 1 1 . 1 1 1 . Scrap Searched 2 | . . 1 . . . . 1 . . Spaces Dug 18 | . . . . 11 7 . . . . Terrain Destroyed 125 | . . 25 . 20 63 12 5 . . Melee . | . . . . . . . . . . Projectile 27 | . . 2 . . 8 12 5 . . AOE 98 | . . 23 . 20 55 . . . . Terrain Rammed . | . . . . . . . . . . Walls Destroyed . | . . . . . . . . . . Machines Disabled . | . . . . . . . . . . Actions | -11 -10 -10 -10 -9 -8 -7 -7 -7 -6 --------- Run | Yrd Mat Min Exi Min Mat Fac Low Low Fac Total 5367 | 82 199 688 746 275 817 911 906 107 636 Wait 372 | . 3 22 . 70 150 83 21 . 23 Move 4593 | 66 158 638 725 203 577 750 859 107 510 Hop . | . . . . . . . . . . Pick Up 109 | 10 11 7 8 . 19 19 5 . 30 Fast Attach . | . . . . . . . . . . Attach 45 | 6 2 3 1 . 7 10 3 . 13 Detach 4 | . . . . . . 1 1 . 2 Swap 37 | . 2 . 4 . 16 5 3 . 7 Drop 68 | . 6 6 8 . 14 14 2 . 18 Fire 127 | . 17 12 . 2 33 23 12 . 28 Melee 7 | . . . . . 1 6 . . . Ram . | . . . . . . . . . . Kick . | . . . . . . . . . . Crush 5 | . . . . . . . . . 5 Escape Stasis . | . . . . . . . . . . Rewire . | . . . . . . . . . . Trap . | . . . . . . . . . . Miscellaneous . | . . . . . . . . . . Route ------- -11/Scrapyard -10/Materials -10/Mines (discovered 3 exits: [*Mat x2] / *Exi) -10/Exiles (discovered 2 exits: [*Min x2]) -9/Mines -8/Materials -7/Factory -7/Lower Caves -7/Lower Caves -6/Factory (discovered 1 exit: Fac) History --------- Turn | Location | Event 13 | -11/Scrapyard | Discovered new exit (range 15) 95 | -11/Scrapyard | Entered Materials 312 | -10/Materials | Discovered new exit (range 8) 316 | -10/Materials | Build established: Mutant 350 | -10/Materials | Entered Mines 370 | -10/Mines | Discovered new exit (range 6) 389 | -10/Mines | Learned 2 Materials zone layouts 499 | -10/Mines | Learned location of Recycling (-9) 561 | -10/Mines | Learned location of Storage (-9) 609 | -10/Mines | Learned location of Mines (-9) 631 | -10/Mines | Deemed a non-threat by the Exiles lab entrance 631 | -10/Mines | Discovered new exit (range 5) 769 | -10/Mines | Discovered new exit (range 8) 994 | -10/Mines | Found a hidden stash of uninstalled traps 1184 | -10/Mines | Entered Exiles 1211 | -10/Exiles | Discovered new exit (range 14) 1277 | -10/Exiles | Met 8R-AWN 1298 | -10/Exiles | Met EX-HEX 1387 | -10/Exiles | Met EX-DEC 1417 | -10/Exiles | Learned location of Zion (-7) 1482 | -10/Exiles | Discovered new exit (range 11) 1569 | -10/Exiles | Visited The Gauntlet 1733 | -10/Exiles | Met EX-BIN 1831 | -10/Exiles | Aligned with FarCom system 1832 | -10/Exiles | Given EX-Vault access code 1863 | -10/Exiles | Opened EX-Vault 1869 | -10/Exiles | Found Prototype Device 1898 | -10/Exiles | Warned to stay clear of 0b10 Research branches 2075 | -10/Exiles | Left Exiles lab with PSU Rigger 2075 | -10/Exiles | Entered Mines 2076 | -9/Mines | Assembled infested the area 2081 | -9/Mines | Assisted by a Guerilla fighting off Assembled 2090 | -9/Mines | Met a Derelict bent on vengeance 2281 | -9/Mines | Learned Materials security intel 2387 | -9/Mines | Discovered new exit (range 6) 2395 | -9/Mines | Entered Materials 2395 | -8/Materials | Evolved 4 slots: Power x1, Propulsion x2, Utility x1 2396 | -8/Materials | Identified exit to Factory 2397 | -8/Materials | Identified PSU Rigger 3382 | -8/Materials | Entered Factory 3382 | -7/Factory | Evolved 2 slots: Utility x1, Weapon x1 4521 | -7/Factory | Discovered new exit (range 4) 4526 | -7/Factory | Entered Lower Caves 4526 | -7/Lower Caves | Spotted B-75 Beast 4834 | -7/Lower Caves | Learned Factory garrison access intel 4919 | -7/Lower Caves | Build established: Gunner 5042 | -7/Lower Caves | Learned location of 1 exit from Factory 5144 | -7/Lower Caves | Encountered a Warlord checkpoint 5186 | -7/Lower Caves | Discovered new exit (range 10) 5687 | -7/Lower Caves | Entered another Lower Caves area 5727 | -7/Lower Caves | Discovered new exit (range 10) 5822 | -7/Lower Caves | Entered Factory 5822 | -6/Factory | Evolved 2 slots: Power x1, Utility x1 5823 | -6/Factory | Identified exit to Factory 5824 | -6/Factory | Loaded intel: 4 garrison access locations 6264 | -6/Factory | Build established: Skirmisher 6667 | -6/Factory | Core integrity fell below 50% 6783 | -6/Factory | Cargo convoy interrupted 6810 | -6/Factory | Garrison activated, responded to threat 6818 | -6/Factory | Core integrity fell below 20% 6824 | -6/Factory | System corruption reached 10% 6827 | -6/Factory | Destroyed by P-60 Hacker with Shock Rifle Last Messages --------------- 06817_ Penetrated by Slug. 06818_ Drone Bay destroyed. 06818_ >> Lost connection to Drone. 06819_ K-01 Serf cleans the Subcomponent Replicator. 06819_ R-10 Processor collects Imp. Heat Sink. 06820_ K-01 Serf collects debris. 06820_ R-10 Processor collects Core Analyzer. 06821_ Penetrated by Slug. 06821_ Hvy. Flak Cannon destroyed. 06821_ Imp. Medium Treads destroyed. 06821_ P-60 Hacker resets X-72 Disruptor, system corruption cleaned. 06822_ ALERT: Rogue bot located, Programmers report to Factory Zone 9B. 06824_ Penetrated by Slug. 06825_ K-01 Serf latches onto Drone. 06825_ K-01 Serf pushes Drone. 06826_ K-01 Serf collects debris. 06826_ K-01 Serf pushes Drone. Map ----- +----------------------------------------------------+ | ?????????????????????????????????# % #??? | | ????????????????????????###??????# #??? | | ????????????????????????# #??? | | ????????????????????????# ############### #??? | | ????????????????????????# ## ""G"" # #??? | | ????????????????????????# ## "" "" """ #% # | | ????????????????????????# ## """ + " | | ????????????????# ### ## ! """ # # | | ????????????????# + # # | | ????????????????# ### ############### +? | | ????????????????????????# #?????????????#+#"###??# | | ????????????????????????# #???????????^??? ????? | | ?????????????????????####+#########??????? """???? | | ?????????????????????# ss "T" #??????? """"??? | | ?????????????????????# """"" = #??????? """" ?? | | ?????????????????????# """"" #???????^"?????? | | ?????????????????# ??# """ #??????????????? | | ?????????????????# # #??????????????? | | ?????????????????# + ! #??????????????? | | ?????????????????# p#####p###########???????????? | | ???????????????### ??# [ ##??????????? | | ???????????????# k ?# p R %#??????????? | | ????????? !!!###k w # nk = ##??????????? | | ????????? #h #???????????? | | ????????? w %p R == #???????????? | | ????????? i #x@% % #???????????? | | ????????????#### ! ?# R #???????????? | | ???????????????# ??# p k ""#???????????? | | ???????????????## ????# Y"#???????????? | | ????????????????# ?????# ""#???????????? | | ???????????????????????# k #???????????? | | ???????????????????????#####;#########???????????? | | ???????????????????????????#%#???????????????????? | | ???????????????????????????# #???????????????????? | | ???????????????????????????# #???????????????????? | | ??????????????????????????? #???????????????????? | | ??????????????????????????? #???????????????????? | | ??????????????????????^???? ???????????????????? | | ??????????????????????????" %???????????????????? | | ??????????????????????????" ???????????????????? | | ??????????????????????????" ???????????????????? | | ?????????????????????????? ???????????????????? | | ??????????????????????????" #???????????????????? | | ???????????????????????^??? ????????????????????? | | ?????????????????^???????????????????????????????? | | ???????????????????^?????????????????????????????? | | ?????????????????????????????????????????????????? | | ?????????????????????????????????????????????????? | | ?????????????????????????????????????????????????? | | ?????????????????????????????????????????????????? | +----------------------------------------------------+ Best States ------------- Heat Dissipation 37 Energy Generation 36 Energy Capacity 540 Matter Stores 300 Matter Capacity 300 Sight Range 16 Robot Scan Range 15 Terrain Scan Density 210 Armor Coverage 450 Melee Speed Boost 20 Evasion (%) 55 Targeting Accuracy 5 Recoil Reduction 4 Energy Filtering 30 Item Schematics ----------------- None Robot Schematics ------------------ None Fabricated ------------ Nothing Alien Tech Used ----------------- None Achievements -------------- None Challenges ------------ None Game ------ Seed HybridBiometalCycler Manual? 0 Play Time 02:06:04 Cumulative 3.3 hours Start 2024.08.07 @ 17:46:52 End 2024.08.09 @ 17:25:48 Sessions 7 Manual Loads 0 Difficulty Rogue Special Mode None Game No. 5 Rogue 5 Adventurer 0 Explorer 0 Win Type - Total 0 Types 0/0/0/0/0/0/0/0/0 Lore% 6 Gallery% 5 Achievement% 19 Wizard Run 0 Options --------- Layout 1 ASCII 0 Keyboard 0 Movement Numpad Keybinds 0 Fullscreen 1 Font 24/Smallcaps Map View 50x35 Zoom Use 0% Tactical HUD 1 Map Filters NONE Filters NONE Steam 1 RUN: 72129588-517b-45da-9da1-5bbb3432f3a7